fUST/lending_fUST_20250302
["ID","MTS","AMOUNT","RATE_DAILY","PERIOD"]
[355071032,1740886303275,-1547.95,0.00025721,2]
[355071033,1740886303285,-500.0,0.00025721,2]
[355071034,1740886303295,-27555.16,0.00025721,2]
[355071035,1740886303304,-1394.09,0.00025721,2]
[355071036,1740886303315,-1310.16,0.00025721,2]
[355071037,1740886303325,-500.0,0.00025721,2]
[355071038,1740886303335,-1400.07,0.00025721,2]
[355071039,1740886303344,-3117.57,0.00025721,2]
[355071040,1740886303355,-2046.05,0.00025721,2]
[355071041,1740886303364,-500.0,0.00025721,2]
[355071042,1740886303374,-3193.9,0.00025721,2]
[355071043,1740886303384,-500.0,0.00025721,2]
[355071044,1740886303394,-2337.31,0.00025721,2]
[355071045,1740886303404,-500.0,0.00025721,2]
[355071046,1740886303414,-617.74,0.00025721,2]
[355071047,1740886303424,-281943.9,0.00025721,2]
[355071048,1740886303434,-500.0,0.00025721,2]
[355071049,1740886303444,-737.91,0.00025721,2]
[355071050,1740886303454,-549.97,0.00025721,2]
[355071051,1740886303464,-6435.74,0.00025721,2]
[355071052,1740886303475,-500.0,0.00025721,2]
[355071053,1740886303484,-500.0,0.00025721,2]
[355071054,1740886303494,-3670.05,0.00025721,2]
[355071055,1740886303504,-500.0,0.00025721,2]
[355071056,1740886303514,-500.0,0.00025721,2]
[355071057,1740886303524,-8285.81,0.00025721,2]
[355071058,1740886303534,-500.0,0.00025721,2]
[355071059,1740886303544,-500.0,0.00025721,2]
[355071060,1740886303554,-794.47,0.00025721,2]
[355071061,1740886303564,-500.0,0.00025721,2]
[355071062,1740886303574,-500.0,0.00025721,2]
[355071063,1740886303584,-1888.44,0.00025721,2]
[355071064,1740886303594,-500.0,0.00025721,2]
[355071065,1740886303605,-1071.59,0.00025721,2]
[355071066,1740886303615,-500.0,0.00025721,2]
[355071067,1740886303625,-603.56,0.00025721,2]
[355071068,1740886303636,-1646.49,0.00025721,2]
[355071069,1740886303646,-500.0,0.00025721,2]
[355071070,1740886303656,-500.0,0.00025721,2]
[355071071,1740886303667,-2181.0,0.00025721,2]
[355071072,1740886303677,-500.0,0.00025721,2]
[355071073,1740886303687,-475.42481455,0.00025721,2]
[355071074,1740886303697,-2015.79,0.00025721,2]
[355071075,1740886303707,-500.0,0.00025721,2]
[355071076,1740886303716,-500.0,0.00025721,2]
[355071077,1740886303726,-500.0,0.00025721,2]
[355071078,1740886303736,-1677.97,0.00025721,2]
[355071079,1740886303746,-2507.59,0.00025721,2]
[355071080,1740886303756,-500.0,0.00025721,2]
[355071081,1740886303766,-500.0,0.00025721,2]
[355071082,1740886303776,-500.0,0.00025721,2]
[355071083,1740886303787,-500.0,0.00025721,2]
[355071084,1740886303796,-500.0,0.00025721,2]
[355071085,1740886303806,-500.0,0.00025721,2]
[355071086,1740886303816,-500.0,0.00025721,2]
[355071087,1740886303827,-500.0,0.00025721,2]
[355071088,1740886303836,-618.85817368,0.00025721,2]
[355071089,1740886303846,-156.45923289,0.00025726,2]
[355071090,1740886303857,-1666.66,0.0002575,2]
[355071091,1740886303867,-5000.0,0.0002575,2]
[355071092,1740886303877,-3333.33,0.0002575,2]
[355071093,1740886303887,-1479.54,0.0002575,2]
[355071094,1740886303897,-160.0,0.00025753,7]
[355071095,1740886303907,-500.0,0.00025753,2]
[355071096,1740886303916,-153.578998,0.00025753,7]
[355071097,1740886303926,-153.579001,0.00025753,7]
[355071098,1740886303935,-368.95787898,0.00025753,3]
[355071099,1740886303945,-355.8486436,0.00025753,2]
[355071100,1740886303955,-800.0,0.00025757,2]
[355071101,1740886303965,-800.0,0.00025778,2]
[355071102,1740886303975,-1411.464778,0.0002578,5]
[355071103,1740886303985,-800.0,0.00025784,2]
[355071104,1740886303995,-800.0,0.00025786,2]
[355071105,1740886304004,-800.0,0.00025786,2]
[355071106,1740886304014,-800.0,0.00025796,2]
[355071107,1740886304024,-800.0,0.00025798,2]
[355071108,1740886304034,-800.0,0.00025799,2]
[355071109,1740886304044,-1000.0,0.000258,5]
[355071110,1740886304054,-800.0,0.00025805,2]
[355071111,1740886304063,-800.0,0.00025806,2]
[355071112,1740886304072,-800.0,0.00025807,2]
[355071113,1740886304082,-800.0,0.00025813,2]
[355071114,1740886304093,-221.0791,0.00025817,2]
[355071115,1740886304104,-1000.0,0.0002582,5]
[355071116,1740886304113,-151.0,0.00025821,7]
[355071117,1740886304123,-687.36,0.0002583,2]
[355071118,1740886304133,-1084.31,0.0002583,2]
[355071119,1740886304143,-896.18,0.0002583,2]
[355071120,1740886304153,-500.0,0.0002583,2]
[355071121,1740886304163,-500.0,0.0002583,2]
[355071122,1740886304172,-1218.11,0.0002583,2]
[355071123,1740886304182,-828.57,0.0002583,2]
[355071124,1740886304191,-500.0,0.0002583,2]
[355071125,1740886304201,-695.69,0.0002583,2]
[355071126,1740886304211,-500.0,0.0002583,2]
[355071127,1740886304221,-500.0,0.0002583,2]
[355071128,1740886304230,-500.0,0.0002583,2]
[355071129,1740886304244,-500.0,0.0002583,2]
[355071130,1740886304254,-1314.21,0.0002583,2]
[355071131,1740886304264,-905.22,0.0002583,2]
[355071132,1740886304273,-461.64873536,0.0002583,2]
[355071133,1740886304284,-500.0,0.0002583,2]
[355071134,1740886304294,-614.99,0.0002583,2]
[355071135,1740886304303,-1289.22,0.0002583,2]
[355071136,1740886304314,-598.14,0.0002583,2]
[355071137,1740886304324,-2226.86,0.0002583,2]
[355071138,1740886304334,-2581.24,0.0002583,2]
[355071139,1740886304343,-500.0,0.0002583,2]
[355071140,1740886304354,-1739.44,0.0002583,2]
[355071141,1740886304363,-500.0,0.0002583,2]
[355071142,1740886304373,-1169.44,0.0002583,2]
[355071143,1740886304383,-500.0,0.0002583,2]
[355071144,1740886304393,-756.25,0.0002583,2]
[355071145,1740886304404,-500.0,0.0002583,2]
[355071146,1740886304413,-1204.9,0.0002583,2]
[355071147,1740886304423,-500.0,0.0002583,2]
[355071148,1740886304434,-1004.4,0.0002583,2]
[355071149,1740886304445,-4788.78,0.0002583,2]
[355071150,1740886304455,-531.68,0.0002583,2]
[355071151,1740886304465,-3299.15,0.0002583,2]
[355071152,1740886304475,-500.0,0.0002583,2]
[355071153,1740886304485,-3768.09,0.0002583,2]
[355071154,1740886304495,-1428.31,0.0002583,2]
[355071155,1740886304506,-500.0,0.0002583,2]
[355071156,1740886304516,-851.2,0.0002583,2]
[355071157,1740886304526,-2684.0,0.0002583,2]
[355071158,1740886304535,-4323.02,0.0002583,2]
[355071159,1740886304545,-500.0,0.0002583,2]
[355071160,1740886304555,-782.1,0.0002583,2]
[355071161,1740886304564,-590.63,0.0002583,2]
[355071162,1740886304574,-1784.14,0.0002583,2]
[355071163,1740886304584,-1315.96,0.0002583,2]
[355071164,1740886304594,-659.17,0.0002583,2]
[355071165,1740886304604,-500.0,0.0002583,2]
[355071166,1740886304614,-1228.88,0.0002583,2]
[355071167,1740886304623,-666.93,0.0002583,2]
[355071168,1740886304633,-1449.12,0.0002583,2]
[355071169,1740886304643,-604.91936807,0.0002583,2]
[355071170,1740886304652,-505.18,0.0002583,2]
[355071171,1740886304662,-500.0,0.0002583,2]
[355071172,1740886304671,-1090.34,0.0002583,2]
[355071173,1740886304681,-500.0,0.0002583,2]
[355071174,1740886304690,-2634.31,0.0002583,2]
[355071175,1740886304700,-500.0,0.0002583,2]
[355071176,1740886304709,-569.32,0.0002583,2]
[355071177,1740886304719,-6333.26,0.0002583,2]
[355071178,1740886304729,-500.0,0.0002583,2]
[355071179,1740886304739,-500.0,0.0002583,2]
[355071180,1740886304749,-500.0,0.0002583,2]
[355071181,1740886304759,-500.0,0.0002583,2]
[355071182,1740886304769,-500.0,0.0002583,2]
[355071183,1740886304778,-500.0,0.0002583,2]
[355071184,1740886304788,-500.0,0.0002583,2]
[355071185,1740886304798,-500.0,0.0002583,2]
[355071186,1740886304807,-1915.38,0.0002583,2]
[355071187,1740886304816,-151.0,0.00025831,7]
[355071188,1740886304826,-888.08,0.00025831,2]
[355071189,1740886304835,-500.0,0.00025831,2]
[355071190,1740886304845,-500.51,0.00025831,2]
[355071191,1740886304855,-500.0,0.00025831,2]
[355071192,1740886304864,-591.09,0.00025831,2]
[355071193,1740886304873,-896.52,0.00025831,2]
[355071194,1740886304883,-553.7,0.00025831,2]
[355071195,1740886304893,-225.839233,0.00025831,7]
[355071196,1740886304902,-524.51,0.00025831,2]
[355071197,1740886304911,-151.0,0.00025831,7]
[355071198,1740886304921,-1474.58,0.00025831,2]
[355071199,1740886304930,-500.0,0.00025831,2]
[355071200,1740886304939,-500.0,0.00025831,2]
[355071201,1740886304949,-687.64,0.00025831,2]
[355071202,1740886304959,-521.17,0.00025831,2]
[355071203,1740886304968,-928.01,0.00025831,2]
[355071204,1740886304978,-500.0,0.00025831,2]
[355071205,1740886304987,-500.0,0.00025831,2]
[355071206,1740886304996,-500.0,0.00025831,2]
[355071207,1740886305005,-500.0,0.00025831,2]
[355071208,1740886305015,-206.81212836,0.00025831,2]
[355071209,1740886305024,-583.22,0.00025831,2]
[355071210,1740886305033,-500.0,0.00025831,2]
[355071211,1740886305042,-500.0,0.00025831,2]
[355071212,1740886305051,-500.0,0.00025831,2]
[355071213,1740886305060,-514.11800967,0.00025831,2]
[355071214,1740886305069,-634.54694255,0.00025831,2]
[355071215,1740886305078,-821.72,0.00025831,2]
[355071216,1740886305087,-703.97,0.00025831,2]
[355071217,1740886305097,-356.69688323,0.00025831,2]
[355071218,1740886305107,-646.1,0.00025831,2]
[355071219,1740886305117,-1413.57,0.00025831,2]
[355071220,1740886305126,-151.0,0.00025831,7]
[355071221,1740886305135,-548.28,0.00025831,2]
[355071222,1740886305144,-1102.8,0.00025831,2]
[355071223,1740886305153,-694.6,0.00025831,2]
[355071224,1740886305163,-540.61,0.00025831,2]
[355071225,1740886305172,-500.0,0.00025831,2]
[355071226,1740886305181,-500.0,0.00025831,2]
[355071227,1740886305190,-623.08,0.00025831,2]
[355071228,1740886305200,-1137.28,0.00025831,2]
[355071229,1740886305209,-1017.35,0.00025831,2]
[355071230,1740886305218,-500.0,0.00025831,2]
[355071231,1740886305228,-1330.22,0.00025831,2]
[355071232,1740886305237,-500.0,0.00025831,2]
[355071233,1740886305251,-541.23785078,0.00025831,2]
[355071234,1740886305260,-500.0,0.00025831,2]
[355071235,1740886305270,-554.81400676,0.00025831,2]
[355071236,1740886305279,-525.52539844,0.00025831,2]
[355071237,1740886305290,-500.0,0.00025831,2]
[355071238,1740886305299,-1066.57,0.00025831,2]
[355071239,1740886305308,-500.0,0.00025831,2]
[355071240,1740886305318,-2368.56,0.00025831,2]
[355071241,1740886305327,-1359.76,0.00025831,2]
[355071242,1740886305336,-800.0,0.00025833,2]
[355071243,1740886305347,-1000.0,0.0002584,5]
[355071244,1740886305358,-1000.0,0.0002586,5]
[355071245,1740886305367,-800.0,0.00025876,2]
[355071246,1740886305377,-1000.0,0.0002588,5]
[355071247,1740886305387,-800.0,0.00025884,2]
[355071248,1740886305397,-800.0,0.00025887,2]
[355071249,1740886305406,-800.0,0.00025887,2]
[355071250,1740886305416,-800.0,0.00025891,2]
[355071251,1740886305425,-1000.0,0.000259,5]
[355071252,1740886305435,-1000.0,0.0002592,5]
[355071253,1740886305444,-800.0,0.00025925,2]
[355071254,1740886305453,-350.0,0.00025936,3]
[355071255,1740886305462,-328.65026861,0.00025936,3]
[355071256,1740886305472,-1000.0,0.0002594,5]
[355071257,1740886305481,-173.135036,0.00025941,2]
[355071258,1740886305491,-800.0,0.00025945,2]
[355071259,1740886305500,-800.0,0.00025955,2]
[355071260,1740886305510,-1000.0,0.0002596,5]
[355071261,1740886305519,-800.0,0.00025966,2]
[355071262,1740886305529,-800.0,0.00025968,2]
[355071263,1740886305610,-205.69271906,0.00025969,4]
[355071264,1740886305622,-800.0,0.00025972,2]
[355071265,1740886305632,-800.0,0.00025976,2]
[355071266,1740886305643,-1000.0,0.0002598,5]
[355071267,1740886305653,-1068.577463,0.0002598,5]
[355071268,1740886305663,-13513.14,0.00025982,2]
[355071269,1740886305673,-7624.93,0.00025982,2]
[355071270,1740886305683,-1615.71,0.00025982,5]
[355071271,1740886305693,-2961.69,0.00025982,2]
[355071272,1740886305703,-2330.23,0.00025982,2]
[355071273,1740886305713,-2306.22,0.00025982,2]
[355071274,1740886305723,-500.0,0.00025982,2]
[355071275,1740886305734,-262.82912366,0.00025985,2]
[355071276,1740886305743,-800.0,0.00025989,2]
[355071277,1740886305753,-500.0,0.00025994,2]
[355071278,1740886305762,-500.0,0.00025994,2]
[355071279,1740886305772,-632.19,0.00025994,2]
[355071280,1740886305782,-2053.23,0.00025994,2]
[355071281,1740886305791,-1289.53,0.00025994,2]
[355071282,1740886305801,-500.0,0.00025994,2]
[355071283,1740886305810,-542.79,0.00025994,2]
[355071284,1740886305819,-500.0,0.00025994,2]
[355071285,1740886305829,-729.52,0.00025994,2]
[355071286,1740886305839,-2911.18,0.00025994,2]
[355071287,1740886305849,-543.53,0.00025994,2]
[355071288,1740886305859,-1263.1,0.00025994,2]
[355071289,1740886305868,-500.0,0.00025994,2]
[355071290,1740886305878,-2931.73,0.00025994,2]
[355071291,1740886305887,-500.0,0.00025994,2]
[355071292,1740886305897,-1979.56,0.00025994,2]
[355071293,1740886305907,-500.0,0.00025994,2]
[355071294,1740886305916,-523.18,0.00025994,2]
[355071295,1740886305926,-500.0,0.00025994,2]
[355071296,1740886305935,-500.0,0.00025994,2]
[355071297,1740886305946,-2314.06,0.00025994,2]
[355071298,1740886305956,-2260.58,0.00025994,2]
[355071299,1740886305965,-828.38,0.00025994,2]
[355071300,1740886305975,-500.0,0.00025994,2]
[355071301,1740886305985,-2081.84,0.00025994,2]
[355071302,1740886305995,-1076.19,0.00025994,2]
[355071303,1740886306005,-1339.9,0.00025994,2]
[355071304,1740886306015,-500.0,0.00025994,2]
[355071305,1740886306025,-500.0,0.00025994,2]
[355071306,1740886306035,-500.0,0.00025994,2]
[355071307,1740886306045,-3469.31,0.00025994,2]
[355071308,1740886306054,-1990.46,0.00025994,2]
[355071309,1740886306064,-971.07,0.00025994,2]
[355071310,1740886306074,-1249.98,0.00025994,2]
[355071311,1740886306084,-2179.06,0.00025994,2]
[355071312,1740886306093,-1012.24,0.00025994,2]
[355071313,1740886306103,-3060.91,0.00025994,2]
[355071314,1740886306113,-559.99,0.00025994,2]
[355071315,1740886306122,-615.9,0.00025994,2]
[355071316,1740886306132,-1996.5,0.00025994,2]
[355071317,1740886306142,-4060.12,0.00025994,2]
[355071318,1740886306151,-10606.09,0.00025994,2]
[355071319,1740886306161,-2799.89,0.00025994,2]
[355071320,1740886306171,-1333.19,0.00025994,2]
[355071321,1740886306181,-719.18,0.00025994,2]
[355071322,1740886306191,-835.72,0.00025994,2]
[355071323,1740886306201,-1367.07,0.00025994,2]
[355071324,1740886306211,-2939.4,0.00025994,2]
[355071325,1740886306222,-1214.18,0.00025994,2]
[355071326,1740886306232,-4481.86,0.00025994,2]
[355071327,1740886306244,-548.69,0.00025994,2]
[355071328,1740886306254,-659.46,0.00025994,2]
[355071329,1740886306263,-4158.95,0.00025994,2]
[355071330,1740886306273,-500.0,0.00025994,2]
[355071331,1740886306283,-848.25,0.00025994,2]
[355071332,1740886306293,-25489.85,0.00025994,2]
[355071333,1740886306303,-1593.02,0.00025994,2]
[355071334,1740886306313,-3140.53,0.00025994,2]
[355071335,1740886306324,-164.15980835,0.00025994,2]
[355071336,1740886306333,-716.21,0.00025994,2]
[355071337,1740886306343,-500.0,0.00025994,2]
[355071338,1740886306353,-4639.3,0.00025994,2]
[355071339,1740886306363,-500.0,0.00025994,2]
[355071340,1740886306372,-14182.49,0.00025994,2]
[355071341,1740886306382,-1188.6,0.00025994,2]
[355071342,1740886306392,-592.63,0.00025994,2]
[355071343,1740886306402,-1643.74,0.00025994,2]
[355071344,1740886306413,-12307.96,0.00025994,2]
[355071345,1740886306422,-1368.42,0.00025994,2]
[355071346,1740886306432,-669.91,0.00025994,2]
[355071347,1740886306442,-500.0,0.00025994,2]
[355071348,1740886306452,-3975.37,0.00025994,2]
[355071349,1740886306462,-501.67,0.00025994,2]
[355071350,1740886306472,-1802.14,0.00025994,2]
[355071351,1740886306482,-962.58,0.00025994,2]
[355071352,1740886306492,-789.66,0.00025994,2]
[355071353,1740886306501,-1159.12,0.00025994,2]
[355071354,1740886306511,-20055.8,0.00025994,2]
[355071355,1740886306521,-2419.35,0.00025994,2]
[355071356,1740886306530,-4017.73,0.00025994,2]
[355071357,1740886306539,-232.12,0.00025994,2]
[355071358,1740886306549,-2550.68,0.00025994,2]
[355071359,1740886306558,-1400.73,0.00025994,2]
[355071360,1740886306568,-596.32,0.00025994,2]
[355071361,1740886306578,-718.57,0.00025994,2]
[355071362,1740886306587,-1849.98,0.00025994,2]
[355071363,1740886306597,-18199.11,0.00025994,2]
[355071364,1740886306608,-500.0,0.00025994,2]
[355071365,1740886306618,-500.0,0.00025994,2]
[355071366,1740886306627,-6307.07,0.00025994,2]
[355071367,1740886306636,-3500.41,0.00025994,2]
[355071368,1740886306646,-500.0,0.00025994,2]
[355071369,1740886306655,-740.47,0.00025994,2]
[355071370,1740886306665,-500.0,0.00025994,2]
[355071371,1740886306675,-1093.67,0.00025994,2]
[355071372,1740886306685,-11719.04,0.00025994,2]
[355071373,1740886306694,-2757.89,0.00025994,2]
[355071374,1740886306704,-500.0,0.00025994,2]
[355071375,1740886306714,-500.0,0.00025994,2]
[355071376,1740886306724,-1586.33,0.00025994,2]
[355071377,1740886306734,-23789.19,0.00025994,2]
[355071378,1740886306743,-1230.43,0.00025994,2]
[355071379,1740886306752,-500.0,0.00025994,2]
[355071380,1740886306762,-3144.58,0.00025994,2]
[355071381,1740886306771,-500.0,0.00025994,2]
[355071382,1740886306780,-733.81,0.00025994,2]
[355071383,1740886306790,-500.0,0.00025995,2]
[355071384,1740886306800,-526.15,0.00025995,2]
[355071385,1740886306810,-1168.03,0.00025995,2]
[355071386,1740886306820,-500.0,0.00025995,2]
[355071387,1740886306830,-500.0,0.00025995,2]
[355071388,1740886306839,-500.0,0.00025995,2]
[355071389,1740886306849,-930.89,0.00025995,2]
[355071390,1740886306859,-574.21900098,0.00025995,2]
[355071391,1740886306869,-502.47414094,0.00025995,2]
[355071392,1740886306879,-602.99,0.00025995,2]
[355071393,1740886306890,-414.2004079,0.00025995,2]
[355071394,1740886306899,-500.03,0.00025995,2]
[355071395,1740886306909,-912.13,0.00025995,2]
[355071396,1740886306919,-500.0,0.00025995,2]
[355071397,1740886306929,-500.0,0.00025995,2]
[355071398,1740886306940,-500.0,0.00025995,2]
[355071399,1740886306950,-860.85,0.00025995,2]
[355071400,1740886306960,-500.0,0.00025995,2]
[355071401,1740886306970,-500.0,0.00025995,2]
[355071402,1740886306980,-500.0,0.00025995,2]
[355071403,1740886306990,-500.0,0.00025995,2]
[355071404,1740886307000,-500.0,0.00025995,2]
[355071405,1740886307010,-500.0,0.00025995,2]
[355071406,1740886307020,-500.0,0.00025995,2]
[355071407,1740886307030,-1228.22,0.00025995,2]
[355071408,1740886307040,-756.89,0.00025995,2]
[355071409,1740886307050,-585.74,0.00025995,2]
[355071410,1740886307060,-564.12,0.00025995,2]
[355071411,1740886307071,-685.69,0.00025995,2]
[355071412,1740886307081,-545.23012407,0.00025995,2]
[355071413,1740886307092,-500.0,0.00025995,2]
[355071414,1740886307102,-509.1,0.00025995,2]
[355071415,1740886307112,-500.0,0.00025995,2]
[355071416,1740886307121,-500.0,0.00025995,2]
[355071417,1740886307131,-766.25,0.00025995,2]
[355071418,1740886307141,-500.0,0.00025995,2]
[355071419,1740886307151,-1706.06,0.00025995,2]
[355071420,1740886307162,-500.0,0.00025995,2]
[355071421,1740886307171,-870.92,0.00025995,2]
[355071422,1740886307182,-531.24,0.00025995,2]
[355071423,1740886307192,-818.25,0.00025995,2]
[355071424,1740886307202,-855.68,0.00025995,2]
[355071425,1740886307211,-500.49,0.00025995,2]
[355071426,1740886307221,-500.0,0.00025995,2]
[355071427,1740886307231,-500.0,0.00025995,2]
[355071428,1740886307243,-630.0,0.00025995,2]
[355071429,1740886307254,-500.0,0.00025995,2]
[355071430,1740886307264,-500.0,0.00025995,2]
[355071431,1740886307274,-500.0,0.00025995,2]
[355071432,1740886307284,-502.33811151,0.00025995,2]
[355071433,1740886307295,-500.0,0.00025995,2]
[355071434,1740886307305,-500.0,0.00025995,2]
[355071435,1740886307314,-500.0,0.00025995,2]
[355071436,1740886307325,-500.0,0.00025995,2]
[355071437,1740886307335,-1052.31,0.00025995,2]
[355071438,1740886307345,-1446.78,0.00025995,2]
[355071439,1740886307356,-500.0,0.00025995,2]
[355071440,1740886307366,-500.0,0.00025995,2]
[355071441,1740886307376,-607.0,0.00025995,2]
[355071442,1740886307386,-500.0,0.00025995,2]
[355071443,1740886307395,-500.0,0.00025995,2]
[355071444,1740886307405,-500.0,0.00025995,2]
[355071445,1740886307415,-500.0,0.00025995,2]
[355071446,1740886307424,-500.0,0.00025995,2]
[355071447,1740886307434,-500.0,0.00025995,2]
[355071448,1740886307444,-1818.63,0.00025995,2]
[355071449,1740886307453,-500.0,0.00025995,2]
[355071450,1740886307464,-332.76253281,0.00025995,2]
[355071451,1740886307473,-500.0,0.00025995,2]
[355071452,1740886307483,-500.0,0.00025995,2]
[355071453,1740886307492,-526.84831672,0.00025995,2]
[355071454,1740886307502,-500.0,0.00025995,2]
[355071455,1740886307511,-618.37,0.00025995,2]
[355071456,1740886307521,-604.16,0.00025995,2]
[355071457,1740886307531,-500.0,0.00025995,2]
[355071458,1740886307540,-500.0,0.00025995,2]
[355071459,1740886307550,-500.0,0.00025995,2]
[355071460,1740886307560,-938.5,0.00025995,2]
[355071461,1740886307570,-500.0,0.00025995,2]
[355071462,1740886307580,-500.0,0.00025995,2]
[355071463,1740886307590,-500.0,0.00025995,2]
[355071464,1740886307600,-801.7,0.00025995,2]
[355071465,1740886307612,-500.0,0.00025995,2]
[355071466,1740886307622,-500.0,0.00025995,2]
[355071467,1740886307631,-500.0,0.00025995,2]
[355071468,1740886307641,-1129.81,0.00025995,2]
[355071469,1740886307651,-8270.53,0.00025995,2]
[355071470,1740886307661,-1547.95,0.00025995,2]
[355071471,1740886307671,-500.0,0.00025995,2]
[355071472,1740886307680,-27555.16,0.00025995,2]
[355071473,1740886307691,-1394.09,0.00025995,2]
[355071474,1740886307700,-1310.16,0.00025995,2]
[355071475,1740886307710,-506.36915292,0.00025995,2]
[355071476,1740886307720,-1400.07,0.00025995,2]
[355071477,1740886307730,-3117.57,0.00025995,2]
[355071478,1740886307740,-2046.05,0.00025995,2]
[355071479,1740886307749,-507.98945232,0.00025995,2]
[355071480,1740886307760,-3193.9,0.00025995,2]
[355071481,1740886307769,-500.0,0.00025995,2]
[355071482,1740886307778,-2337.31,0.00025995,2]
[355071483,1740886307787,-500.0,0.00025995,2]
[355071484,1740886307797,-617.74,0.00025995,2]
[355071485,1740886307807,-281943.9,0.00025995,2]
[355071486,1740886307816,-500.0,0.00025995,2]
[355071487,1740886307825,-737.91,0.00025995,2]
[355071488,1740886307835,-549.97,0.00025995,2]
[355071489,1740886307844,-6435.74,0.00025995,2]
[355071490,1740886307854,-500.0,0.00025995,2]
[355071491,1740886307864,-500.0,0.00025995,2]
[355071492,1740886307874,-3670.05,0.00025995,2]
[355071493,1740886307883,-500.0,0.00025995,2]
[355071494,1740886307893,-500.0,0.00025995,2]
[355071495,1740886307902,-8285.81,0.00025995,2]
[355071496,1740886307911,-500.0,0.00025995,2]
[355071497,1740886307921,-500.0,0.00025995,2]
[355071498,1740886307931,-794.47,0.00025995,2]
[355071499,1740886307940,-500.0,0.00025995,2]
[355071500,1740886307949,-500.0,0.00025995,2]
[355071501,1740886307959,-1888.44,0.00025995,2]
[355071502,1740886307970,-500.0,0.00025995,2]
[355071503,1740886307979,-1071.59,0.00025995,2]
[355071504,1740886307990,-500.0,0.00025995,2]
[355071505,1740886307999,-603.56,0.00025995,2]
[355071506,1740886308008,-1646.49,0.00025995,2]
[355071507,1740886308018,-365.1374418,0.00025995,2]
[355071508,1740886308027,-500.0,0.00025995,2]
[355071509,1740886308037,-2181.0,0.00025995,2]
[355071510,1740886308047,-505.94888308,0.00025995,2]
[355071511,1740886308057,-2015.79,0.00025995,2]
[355071512,1740886308067,-500.0,0.00025995,2]
[355071513,1740886308076,-500.0,0.00025995,2]
[355071514,1740886308086,-500.0,0.00025995,2]
[355071515,1740886308095,-1677.97,0.00025995,2]
[355071516,1740886308107,-2507.59,0.00025995,2]
[355071517,1740886308117,-500.0,0.00025995,2]
[355071518,1740886308127,-500.0,0.00025995,2]
[355071519,1740886308137,-467.91170796,0.00025995,2]
[355071520,1740886308147,-500.0,0.00025995,2]
[355071521,1740886308158,-500.0,0.00025995,2]
[355071522,1740886308168,-500.0,0.00025995,2]
[355071523,1740886308178,-500.0,0.00025995,2]
[355071524,1740886308187,-500.0,0.00025995,2]
[355071525,1740886308197,-108054.92957124,0.00026,60]
[355071526,1740886308207,-5000.0,0.00026,2]
[355071527,1740886308217,-500.0,0.00026,2]
[355071528,1740886308227,-151.0,0.00026,7]
[355071529,1740886308236,-225.839233,0.00026,7]
[355071530,1740886308251,-151.0,0.00026,7]
[355071531,1740886308262,-1000.0,0.00026,5]